[Event "Titled Tuesday Blitz November 07 Early 2023"]
[White "Haitin, Ilja"]
[Black "Perez Gormaz, Matias"]
[WhiteFideId "4501764"]
[BlackFideId "3406342"]
[WhiteElo "2466"]
[BlackElo "2728"]
[Result "0-1"]
[Round "2"]
[TimeControl "180+1"]
[Date "2023.11.07"]
[WhiteClock "0:00:00"]
[BlackClock "0:00:13"]
[Board "85"]

1. Nf3 {[%clk 0:02:56]}  d5 {[%clk 0:02:59]} 2. g3 {[%clk 0:02:50]}  g6 {[%clk 0:02:54]} 3. c4 {[%clk 0:02:48]}  dxc4 {[%clk 0:02:49]} 4. Na3 {[%clk 0:02:37]}  Bg7 {[%clk 0:02:45]} 5. Nxc4 {[%clk 0:02:35]}  Nc6 {[%clk 0:02:45]} 6. Bg2 {[%clk 0:02:18]}  e5 {[%clk 0:02:43]} 7. d3 {[%clk 0:02:16]}  Nge7 {[%clk 0:02:41]} 8. O-O {[%clk 0:02:09]}  O-O {[%clk 0:02:41]} 9. Rb1 {[%clk 0:02:04]}  Be6 {[%clk 0:02:29]} 10. b3 {[%clk 0:01:49]}  Nf5 {[%clk 0:02:05]} 11. Bb2 {[%clk 0:01:43]}  Nfd4 {[%clk 0:02:00]} 12. e3 {[%clk 0:01:21]}  Nxf3+ {[%clk 0:01:57]} 13. Qxf3 {[%clk 0:01:16]}  Qxd3 {[%clk 0:01:44]} 14. Rbd1 {[%clk 0:01:07]}  Bxc4 {[%clk 0:01:08]} 15. Rxd3 {[%clk 0:00:39]}  Bxd3 {[%clk 0:01:08]} 16. Qd1 {[%clk 0:00:13]}  Rfd8 {[%clk 0:01:07]} 17. Re1 {[%clk 0:00:11]}  a5 {[%clk 0:01:04]} 18. Qc1 {[%clk 0:00:11]}  a4 {[%clk 0:00:57]} 19. bxa4 {[%clk 0:00:10]}  Rxa4 {[%clk 0:00:56]} 20. a3 {[%clk 0:00:11]}  Rc4 {[%clk 0:00:55]} 21. Qa1 {[%clk 0:00:10]}  Bc2 {[%clk 0:00:36]} 22. Bxc6 {[%clk 0:00:05]}  Rxc6 {[%clk 0:00:37]} 23. Bxe5 {[%clk 0:00:05]}  Bf8 {[%clk 0:00:38]} 24. Bf6 {[%clk 0:00:04]}  Rd3 {[%clk 0:00:30]} 25. Bd4 {[%clk 0:00:04]}  Rxa3 {[%clk 0:00:29]} 26. Qb2 {[%clk 0:00:03]}  Rb3 {[%clk 0:00:29]} 27. Qa1 {[%clk 0:00:03]}  Ra6 {[%clk 0:00:16]} 28. Qc1 {[%clk 0:00:02]}  Rb1 {[%clk 0:00:14]} 29. Qd2 {[%clk 0:00:02]}  Rxe1+ {[%clk 0:00:12]} 30. Qxe1 {[%clk 0:00:02]}  Be4 {[%clk 0:00:13]} 31. h4 {[%clk 0:00:01]}  h5 {[%clk 0:00:13]} 32. Kh2 {[%clk 0:00:00]}  c5 {[%clk 0:00:13]} 0-1


[Site "https://www.chess.com"]

[Event "Titled Tuesday Blitz November 07 Early 2023"]
[White "Wagner, Dennis"]
[Black "Herman, Daniel"]
[WhiteFideId "24650684"]
[BlackFideId "30935008"]
[WhiteElo "2718"]
[BlackElo "2450"]
[Result "1-0"]
[Round "2"]
[TimeControl "180+1"]
[Date "2023.11.07"]
[WhiteClock "0:02:13"]
[BlackClock "0:00:28"]
[Board "87"]

1. d4 {[%clk 0:03:00]}  Nf6 {[%clk 0:02:58]} 2. Nf3 {[%clk 0:03:01]}  g6 {[%clk 0:02:58]} 3. c4 {[%clk 0:02:54]}  Bg7 {[%clk 0:02:58]} 4. Nc3 {[%clk 0:02:52]}  d5 {[%clk 0:02:58]} 5. cxd5 {[%clk 0:02:48]}  Nxd5 {[%clk 0:02:59]} 6. e4 {[%clk 0:02:48]}  Nxc3 {[%clk 0:02:59]} 7. bxc3 {[%clk 0:02:49]}  O-O {[%clk 0:02:59]} 8. Be2 {[%clk 0:02:48]}  c5 {[%clk 0:02:59]} 9. Be3 {[%clk 0:02:49]}  Nc6 {[%clk 0:02:56]} 10. Rc1 {[%clk 0:02:48]}  cxd4 {[%clk 0:02:47]} 11. cxd4 {[%clk 0:02:49]}  Qa5+ {[%clk 0:02:47]} 12. Qd2 {[%clk 0:02:41]}  Qxd2+ {[%clk 0:02:46]} 13. Kxd2 {[%clk 0:02:42]}  Bg4 {[%clk 0:02:27]} 14. d5 {[%clk 0:02:40]}  Bxf3 {[%clk 0:02:11]} 15. gxf3 {[%clk 0:02:40]}  Nd4 {[%clk 0:02:07]} 16. Rc7 {[%clk 0:02:37]}  e6 {[%clk 0:01:55]} 17. d6 {[%clk 0:02:27]}  Rfd8 {[%clk 0:01:47]} 18. d7 {[%clk 0:02:25]}  b6 {[%clk 0:01:29]} 19. Rhc1 {[%clk 0:02:17]}  Kf8 {[%clk 0:00:28]} 20. Rc8 {[%clk 0:02:13]} 1-0


[Site "https://www.chess.com"]

[Event "Titled Tuesday Blitz November 07 Early 2023"]
[White "Liu, Casper"]
[Black "Darini, Pouria"]
[WhiteFideId "1454153"]
[BlackFideId "12502200"]
[WhiteElo "2441"]
[BlackElo "2711"]
[Result "0-1"]
[Round "2"]
[TimeControl "180+1"]
[Date "2023.11.07"]
[WhiteClock "0:00:00"]
[BlackClock "0:00:10"]
[Board "89"]

1. e4 {[%clk 0:03:00]}  c5 {[%clk 0:02:59]} 2. Nc3 {[%clk 0:02:59]}  Nc6 {[%clk 0:02:59]} 3. Nge2 {[%clk 0:02:57]}  Nf6 {[%clk 0:02:53]} 4. g3 {[%clk 0:02:55]}  d6 {[%clk 0:02:51]} 5. Bg2 {[%clk 0:02:55]}  g6 {[%clk 0:02:52]} 6. O-O {[%clk 0:02:55]}  Bg7 {[%clk 0:02:53]} 7. d3 {[%clk 0:02:55]}  Rb8 {[%clk 0:02:51]} 8. a4 {[%clk 0:02:55]}  a6 {[%clk 0:02:52]} 9. h3 {[%clk 0:02:55]}  b5 {[%clk 0:02:50]} 10. axb5 {[%clk 0:02:56]}  axb5 {[%clk 0:02:50]} 11. f4 {[%clk 0:02:56]}  Bd7 {[%clk 0:02:51]} 12. g4 {[%clk 0:02:55]}  b4 {[%clk 0:02:51]} 13. Nd5 {[%clk 0:02:55]}  Nxd5 {[%clk 0:02:51]} 14. exd5 {[%clk 0:02:56]}  Nd4 {[%clk 0:02:52]} 15. Ng3 {[%clk 0:02:55]}  h5 {[%clk 0:02:44]} 16. f5 {[%clk 0:02:53]}  hxg4 {[%clk 0:02:37]} 17. hxg4 {[%clk 0:02:53]}  gxf5 {[%clk 0:01:58]} 18. gxf5 {[%clk 0:02:24]}  Be5 {[%clk 0:01:43]} 19. Bf4 {[%clk 0:02:15]}  Qb6 {[%clk 0:01:20]} 20. Bxe5 {[%clk 0:01:43]}  dxe5 {[%clk 0:01:21]} 21. Qg4 {[%clk 0:01:30]}  Nxc2 {[%clk 0:01:01]} 22. Qg7 {[%clk 0:01:23]}  Qf6 {[%clk 0:00:48]} 23. Qxf6 {[%clk 0:01:13]}  exf6 {[%clk 0:00:49]} 24. Ra7 {[%clk 0:01:07]}  Ne3 {[%clk 0:00:35]} 25. Rc1 {[%clk 0:01:04]}  Rg8 {[%clk 0:00:32]} 26. Kf2 {[%clk 0:00:53]}  Nxg2 {[%clk 0:00:32]} 27. Kxg2 {[%clk 0:00:54]}  Bxf5 {[%clk 0:00:32]} 28. Rxc5 {[%clk 0:00:53]}  Bxd3 {[%clk 0:00:32]} 29. Rcc7 {[%clk 0:00:53]}  Rg7 {[%clk 0:00:22]} 30. d6 {[%clk 0:00:41]}  Rd8 {[%clk 0:00:20]} 31. Re7+ {[%clk 0:00:20]}  Kf8 {[%clk 0:00:20]} 32. Red7 {[%clk 0:00:17]}  Rxd7 {[%clk 0:00:21]} 33. Rxd7 {[%clk 0:00:18]}  Ke8 {[%clk 0:00:20]} 34. Rc7 {[%clk 0:00:15]}  f5 {[%clk 0:00:17]} 35. Kf2 {[%clk 0:00:15]}  Rg6 {[%clk 0:00:16]} 36. Re7+ {[%clk 0:00:11]}  Kf8 {[%clk 0:00:10]} 37. Rxe5 {[%clk 0:00:12]}  Rxd6 {[%clk 0:00:06]} 38. Nxf5 {[%clk 0:00:12]}  Bxf5 {[%clk 0:00:06]} 39. Rxf5 {[%clk 0:00:13]}  Rd2+ {[%clk 0:00:07]} 40. Ke3 {[%clk 0:00:13]}  Rxb2 {[%clk 0:00:08]} 41. Rb5 {[%clk 0:00:12]}  Kg7 {[%clk 0:00:08]} 42. Rb6 {[%clk 0:00:10]}  f6 {[%clk 0:00:08]} 43. Kf3 {[%clk 0:00:10]}  Kg6 {[%clk 0:00:09]} 44. Kg3 {[%clk 0:00:09]}  Kg5 {[%clk 0:00:09]} 45. Rb8 {[%clk 0:00:09]}  Rb3+ {[%clk 0:00:09]} 46. Kf2 {[%clk 0:00:09]}  Kf4 {[%clk 0:00:10]} 47. Rc8 {[%clk 0:00:03]}  Rb2+ {[%clk 0:00:10]} 48. Kf1 {[%clk 0:00:03]}  f5 {[%clk 0:00:10]} 49. Ke1 {[%clk 0:00:03]}  Ke3 {[%clk 0:00:10]} 50. Kf1 {[%clk 0:00:00]}  f4 {[%clk 0:00:10]} 0-1


[Site "https://www.chess.com"]

[Event "Titled Tuesday Blitz November 07 Early 2023"]
[White "NovozhilovSemen"]
[Black "krucki03"]
[WhiteElo "2708"]
[BlackElo "2425"]
[Result "0-1"]
[Round "2"]
[TimeControl "180+1"]
[Date "2023.11.07"]
[WhiteClock "0:00:08"]
[BlackClock "0:01:38"]
[Board "91"]

1. d4 {[%clk 0:03:00]}  Nf6 {[%clk 0:02:59]} 2. Nf3 {[%clk 0:03:00]}  c5 {[%clk 0:02:59]} 3. d5 {[%clk 0:03:00]}  b5 {[%clk 0:02:59]} 4. Bg5 {[%clk 0:03:00]}  Qb6 {[%clk 0:03:00]} 5. c3 {[%clk 0:03:00]}  g6 {[%clk 0:02:58]} 6. Bxf6 {[%clk 0:02:59]}  Qxf6 {[%clk 0:02:58]} 7. e4 {[%clk 0:02:59]}  Qb6 {[%clk 0:02:59]} 8. Nbd2 {[%clk 0:02:59]}  Bg7 {[%clk 0:02:59]} 9. a4 {[%clk 0:03:00]}  b4 {[%clk 0:02:57]} 10. Nc4 {[%clk 0:03:00]}  Qd8 {[%clk 0:02:55]} 11. cxb4 {[%clk 0:02:58]}  cxb4 {[%clk 0:02:55]} 12. a5 {[%clk 0:02:59]}  O-O {[%clk 0:02:54]} 13. Be2 {[%clk 0:02:57]}  Ba6 {[%clk 0:02:54]} 14. Qb3 {[%clk 0:02:55]}  d6 {[%clk 0:02:51]} 15. O-O {[%clk 0:02:53]}  Nd7 {[%clk 0:02:51]} 16. Nfd2 {[%clk 0:01:34]}  Rb8 {[%clk 0:02:49]} 17. Rfe1 {[%clk 0:01:26]}  Nc5 {[%clk 0:02:48]} 18. Qc2 {[%clk 0:01:26]}  Qd7 {[%clk 0:02:41]} 19. Nb3 {[%clk 0:01:23]}  Rfc8 {[%clk 0:02:34]} 20. Nxc5 {[%clk 0:01:22]}  Rxc5 {[%clk 0:02:34]} 21. Qb3 {[%clk 0:01:23]}  Bxc4 {[%clk 0:02:31]} 22. Bxc4 {[%clk 0:01:23]}  Bxb2 {[%clk 0:02:30]} 23. Qxb2 {[%clk 0:01:12]}  Rxc4 {[%clk 0:02:30]} 24. h4 {[%clk 0:01:12]}  Qg4 {[%clk 0:02:27]} 25. h5 {[%clk 0:01:05]}  Qxh5 {[%clk 0:02:25]} 26. Rac1 {[%clk 0:01:03]}  Rxc1 {[%clk 0:02:16]} 27. Rxc1 {[%clk 0:01:03]}  Qe5 {[%clk 0:02:16]} 28. Qxe5 {[%clk 0:00:28]}  dxe5 {[%clk 0:02:16]} 29. Kf1 {[%clk 0:00:29]}  h5 {[%clk 0:02:04]} 30. Ke2 {[%clk 0:00:23]}  b3 {[%clk 0:02:02]} 31. Kd3 {[%clk 0:00:22]}  b2 {[%clk 0:02:01]} 32. Rb1 {[%clk 0:00:22]}  h4 {[%clk 0:02:00]} 33. Kc3 {[%clk 0:00:21]}  g5 {[%clk 0:01:59]} 34. f3 {[%clk 0:00:21]}  f5 {[%clk 0:01:54]} 35. exf5 {[%clk 0:00:19]}  Kf7 {[%clk 0:01:53]} 36. Rxb2 {[%clk 0:00:16]}  Rxb2 {[%clk 0:01:39]} 37. Kxb2 {[%clk 0:00:17]}  Kf6 {[%clk 0:01:40]} 38. Kc3 {[%clk 0:00:16]}  Kxf5 {[%clk 0:01:41]} 39. Kd3 {[%clk 0:00:16]}  Kf4 {[%clk 0:01:40]} 40. Ke2 {[%clk 0:00:14]}  e4 {[%clk 0:01:36]} 41. fxe4 {[%clk 0:00:06]}  Kxe4 {[%clk 0:01:37]} 42. Kf2 {[%clk 0:00:07]}  g4 {[%clk 0:01:36]} 43. Kg1 {[%clk 0:00:06]}  Kxd5 {[%clk 0:01:36]} 44. Kf2 {[%clk 0:00:06]}  Kd4 {[%clk 0:01:37]} 45. Ke2 {[%clk 0:00:06]}  e5 {[%clk 0:01:37]} 46. Kd2 {[%clk 0:00:07]}  e4 {[%clk 0:01:37]} 47. Ke2 {[%clk 0:00:07]}  h3 {[%clk 0:01:38]} 48. gxh3 {[%clk 0:00:07]}  gxh3 {[%clk 0:01:39]} 49. Kf2 {[%clk 0:00:08]}  e3+ {[%clk 0:01:38]} 50. Kf3 {[%clk 0:00:08]}  h2 {[%clk 0:01:38]} 51. Kg2 {[%clk 0:00:08]}  e2 {[%clk 0:01:38]} 0-1


[Site "https://www.chess.com"]

[Event "Titled Tuesday Blitz November 07 Early 2023"]
[White "Suspenser17"]
[Black "Nagare Kaivalya Sandip"]
[BlackFideId "25957929"]
[WhiteElo "2417"]
[BlackElo "2705"]
[Result "0-1"]
[Round "2"]
[TimeControl "180+1"]
[Date "2023.11.07"]
[WhiteClock "0:00:14"]
[BlackClock "0:00:15"]
[Board "94"]

1. e4 {[%clk 0:02:56]}  e5 {[%clk 0:02:59]} 2. Nf3 {[%clk 0:02:56]}  Nc6 {[%clk 0:03:00]} 3. Bc4 {[%clk 0:02:57]}  Nf6 {[%clk 0:02:59]} 4. d3 {[%clk 0:02:57]}  Bc5 {[%clk 0:02:58]} 5. c3 {[%clk 0:02:56]}  O-O {[%clk 0:02:55]} 6. O-O {[%clk 0:02:55]}  a5 {[%clk 0:02:50]} 7. Re1 {[%clk 0:02:50]}  d5 {[%clk 0:02:41]} 8. exd5 {[%clk 0:02:49]}  Nxd5 {[%clk 0:02:41]} 9. Bg5 {[%clk 0:02:44]}  Nf6 {[%clk 0:02:00]} 10. Nxe5 {[%clk 0:02:35]}  Nxe5 {[%clk 0:01:57]} 11. Rxe5 {[%clk 0:02:36]}  Qd6 {[%clk 0:01:54]} 12. d4 {[%clk 0:02:29]}  Ng4 {[%clk 0:01:49]} 13. Be7 {[%clk 0:02:17]}  Qh6 {[%clk 0:01:38]} 14. h3 {[%clk 0:01:47]}  Nxe5 {[%clk 0:01:37]} 15. Bxf8 {[%clk 0:01:43]}  Bxf8 {[%clk 0:01:13]} 16. dxe5 {[%clk 0:01:42]}  Qf4 {[%clk 0:01:12]} 17. Nd2 {[%clk 0:01:32]}  Qxe5 {[%clk 0:01:12]} 18. Nf3 {[%clk 0:01:30]}  Qc5 {[%clk 0:01:06]} 19. Qe2 {[%clk 0:01:17]}  Bf5 {[%clk 0:01:03]} 20. Ne5 {[%clk 0:01:10]}  Bg6 {[%clk 0:00:55]} 21. Nxg6 {[%clk 0:01:04]}  hxg6 {[%clk 0:00:56]} 22. Re1 {[%clk 0:01:02]}  Qf5 {[%clk 0:00:41]} 23. Qd2 {[%clk 0:00:42]}  Bd6 {[%clk 0:00:37]} 24. Qd5 {[%clk 0:00:25]}  Qxd5 {[%clk 0:00:34]} 25. Bxd5 {[%clk 0:00:26]}  c6 {[%clk 0:00:34]} 26. Bf3 {[%clk 0:00:26]}  Kf8 {[%clk 0:00:33]} 27. Kf1 {[%clk 0:00:26]}  a4 {[%clk 0:00:25]} 28. Rd1 {[%clk 0:00:23]}  Ke7 {[%clk 0:00:24]} 29. Ke2 {[%clk 0:00:19]}  Ra5 {[%clk 0:00:23]} 30. a3 {[%clk 0:00:19]}  Rb5 {[%clk 0:00:22]} 31. Rd2 {[%clk 0:00:19]}  Bf4 {[%clk 0:00:20]} 32. Rc2 {[%clk 0:00:20]}  f5 {[%clk 0:00:20]} 33. g3 {[%clk 0:00:20]}  Be5 {[%clk 0:00:18]} 34. h4 {[%clk 0:00:20]}  Kd6 {[%clk 0:00:16]} 35. Kf1 {[%clk 0:00:19]}  Kc7 {[%clk 0:00:15]} 36. Be2 {[%clk 0:00:19]}  Rc5 {[%clk 0:00:15]} 37. Bd3 {[%clk 0:00:19]}  b5 {[%clk 0:00:15]} 38. h5 {[%clk 0:00:18]}  gxh5 {[%clk 0:00:14]} 39. Bxf5 {[%clk 0:00:18]}  Bxg3 {[%clk 0:00:14]} 40. fxg3 {[%clk 0:00:15]}  Rxf5+ {[%clk 0:00:14]} 41. Kg2 {[%clk 0:00:16]}  g5 {[%clk 0:00:14]} 42. Re2 {[%clk 0:00:16]}  Kd6 {[%clk 0:00:14]} 43. Re8 {[%clk 0:00:16]}  g4 {[%clk 0:00:14]} 44. Rh8 {[%clk 0:00:16]}  Kd5 {[%clk 0:00:14]} 45. Rd8+ {[%clk 0:00:16]}  Kc4 {[%clk 0:00:14]} 46. Rc8 {[%clk 0:00:17]}  c5 {[%clk 0:00:14]} 47. Rh8 {[%clk 0:00:16]}  Kb3 {[%clk 0:00:14]} 48. Rb8 {[%clk 0:00:17]}  c4 {[%clk 0:00:14]} 49. Rb6 {[%clk 0:00:14]}  Kxb2 {[%clk 0:00:15]} 0-1


[Site "https://www.chess.com"]

[Event "Titled Tuesday Blitz November 07 Early 2023"]
[White "Su, Dion"]
[Black "Aradhya, Garg"]
[WhiteFideId "2029731"]
[BlackFideId "25006746"]
[WhiteElo "2414"]
[BlackElo "2704"]
[Result "1-0"]
[Round "2"]
[TimeControl "180+1"]
[Date "2023.11.07"]
[WhiteClock "0:00:35"]
[BlackClock "0:00:14"]
[Board "95"]

1. e4 {[%clk 0:03:00]}  e5 {[%clk 0:02:59]} 2. Nf3 {[%clk 0:03:01]}  Nc6 {[%clk 0:02:59]} 3. Bc4 {[%clk 0:03:02]}  Nf6 {[%clk 0:02:59]} 4. d3 {[%clk 0:03:02]}  Bc5 {[%clk 0:02:58]} 5. c3 {[%clk 0:03:03]}  h6 {[%clk 0:02:56]} 6. a4 {[%clk 0:03:01]}  a5 {[%clk 0:02:56]} 7. O-O {[%clk 0:03:00]}  d6 {[%clk 0:02:56]} 8. h3 {[%clk 0:03:00]}  O-O {[%clk 0:02:55]} 9. Qe2 {[%clk 0:03:00]}  Be6 {[%clk 0:02:54]} 10. Nbd2 {[%clk 0:02:57]}  Re8 {[%clk 0:02:52]} 11. Bb5 {[%clk 0:02:57]}  Nd7 {[%clk 0:02:50]} 12. Rd1 {[%clk 0:02:55]}  d5 {[%clk 0:02:48]} 13. exd5 {[%clk 0:02:43]}  Bxd5 {[%clk 0:02:48]} 14. Ne4 {[%clk 0:02:44]}  Bb6 {[%clk 0:02:45]} 15. Ng3 {[%clk 0:02:34]}  Nc5 {[%clk 0:02:42]} 16. Be3 {[%clk 0:02:25]}  Qd7 {[%clk 0:02:36]} 17. c4 {[%clk 0:02:23]}  Bxf3 {[%clk 0:02:35]} 18. Qxf3 {[%clk 0:02:24]}  Rad8 {[%clk 0:02:22]} 19. b4 {[%clk 0:02:13]}  axb4 {[%clk 0:02:14]} 20. a5 {[%clk 0:02:13]}  Ba7 {[%clk 0:01:36]} 21. a6 {[%clk 0:02:13]}  Nb3 {[%clk 0:01:36]} 22. axb7 {[%clk 0:02:12]}  Bxe3 {[%clk 0:01:29]} 23. Bxc6 {[%clk 0:02:08]}  Bxf2+ {[%clk 0:01:29]} 24. Kxf2 {[%clk 0:02:08]}  Qd4+ {[%clk 0:01:29]} 25. Qe3 {[%clk 0:02:05]}  Qb2+ {[%clk 0:01:29]} 26. Kg1 {[%clk 0:02:00]}  Nxa1 {[%clk 0:01:29]} 27. Bxe8 {[%clk 0:01:58]}  Qa2 {[%clk 0:01:08]} 28. Bc6 {[%clk 0:01:47]}  Nc2 {[%clk 0:00:53]} 29. Qxe5 {[%clk 0:01:43]}  Nd4 {[%clk 0:00:48]} 30. Bd5 {[%clk 0:01:31]}  Qa7 {[%clk 0:00:46]} 31. c5 {[%clk 0:01:21]}  c6 {[%clk 0:00:46]} 32. Qc7 {[%clk 0:01:12]}  Qb8 {[%clk 0:00:44]} 33. Qxf7+ {[%clk 0:01:03]}  Kh8 {[%clk 0:00:42]} 34. Nh5 {[%clk 0:01:03]}  Nf5 {[%clk 0:00:37]} 35. Be4 {[%clk 0:00:43]}  Rf8 {[%clk 0:00:33]} 36. Qg6 {[%clk 0:00:44]}  Qxb7 {[%clk 0:00:17]} 37. Bxf5 {[%clk 0:00:43]}  Rxf5 {[%clk 0:00:16]} 38. Qxf5 {[%clk 0:00:43]}  Qe7 {[%clk 0:00:17]} 39. Qc8+ {[%clk 0:00:41]}  Kh7 {[%clk 0:00:17]} 40. Qf5+ {[%clk 0:00:41]}  g6 {[%clk 0:00:16]} 41. Nf6+ {[%clk 0:00:36]}  Kg7 {[%clk 0:00:16]} 42. Qd7 {[%clk 0:00:35]}  Kxf6 {[%clk 0:00:14]} 43. Rf1+ {[%clk 0:00:35]} 1-0


[Site "https://www.chess.com"]

[Event "Titled Tuesday Blitz November 07 Early 2023"]
[White "Rakotomaharo, Fy Antenaina"]
[Black "Goldin, Roman"]
[WhiteFideId "13100050"]
[BlackFideId "2803860"]
[WhiteElo "2701"]
[BlackElo "2405"]
[Result "1-0"]
[Round "2"]
[TimeControl "180+1"]
[Date "2023.11.07"]
[WhiteClock "0:00:27"]
[BlackClock "0:00:00"]
[Board "97"]

1. Nf3 {[%clk 0:03:00]}  Nf6 {[%clk 0:02:56]} 2. d4 {[%clk 0:02:59]}  b5 {[%clk 0:02:55]} 3. Bg5 {[%clk 0:02:56]}  Bb7 {[%clk 0:02:54]} 4. Nbd2 {[%clk 0:02:55]}  a6 {[%clk 0:02:40]} 5. e3 {[%clk 0:02:52]}  e6 {[%clk 0:02:38]} 6. Bd3 {[%clk 0:02:52]}  c5 {[%clk 0:02:37]} 7. c3 {[%clk 0:02:52]}  d6 {[%clk 0:02:38]} 8. Qe2 {[%clk 0:02:49]}  Nbd7 {[%clk 0:02:36]} 9. a4 {[%clk 0:02:49]}  c4 {[%clk 0:02:34]} 10. Bc2 {[%clk 0:02:49]}  Be7 {[%clk 0:02:35]} 11. O-O {[%clk 0:02:43]}  O-O {[%clk 0:02:32]} 12. e4 {[%clk 0:02:42]}  e5 {[%clk 0:02:31]} 13. b3 {[%clk 0:02:34]}  exd4 {[%clk 0:01:53]} 14. Nxd4 {[%clk 0:02:05]}  cxb3 {[%clk 0:01:50]} 15. N2xb3 {[%clk 0:02:00]}  bxa4 {[%clk 0:01:47]} 16. Rxa4 {[%clk 0:01:58]}  Qc7 {[%clk 0:01:40]} 17. Na5 {[%clk 0:01:30]}  Nc5 {[%clk 0:01:38]} 18. Nxb7 {[%clk 0:01:30]}  Qxb7 {[%clk 0:01:35]} 19. Rb4 {[%clk 0:01:23]}  Qc7 {[%clk 0:01:27]} 20. Nf5 {[%clk 0:01:22]}  Bd8 {[%clk 0:01:20]} 21. Qf3 {[%clk 0:01:02]}  Nfd7 {[%clk 0:00:53]} 22. Bxd8 {[%clk 0:00:42]}  Raxd8 {[%clk 0:00:46]} 23. Qg3 {[%clk 0:00:42]}  g6 {[%clk 0:00:41]} 24. Nxd6 {[%clk 0:00:36]}  Nf6 {[%clk 0:00:28]} 25. e5 {[%clk 0:00:35]}  Nd5 {[%clk 0:00:15]} 26. Rc4 {[%clk 0:00:35]}  Nb6 {[%clk 0:00:11]} 27. Rh4 {[%clk 0:00:33]}  Ne6 {[%clk 0:00:09]} 28. Qe3 {[%clk 0:00:31]}  h5 {[%clk 0:00:03]} 29. Qh6 {[%clk 0:00:28]}  Rxd6 {[%clk 0:00:02]} 30. exd6 {[%clk 0:00:27]}  Qxd6 {[%clk 0:00:00]} 31. Rxh5 {[%clk 0:00:27]} 1-0


[Site "https://www.chess.com"]

[Event "Titled Tuesday Blitz November 07 Early 2023"]
[White "Ovezdurdyyeva, Jemal"]
[Black "Hua, Lefong"]
[WhiteFideId "14001888"]
[BlackFideId "2602253"]
[WhiteElo "2366"]
[BlackElo "2694"]
[Result "0-1"]
[Round "2"]
[TimeControl "180+1"]
[Date "2023.11.07"]
[WhiteClock "0:00:13"]
[BlackClock "0:00:48"]
[Board "101"]

1. e4 {[%clk 0:03:00]}  c5 {[%clk 0:03:00]} 2. Nf3 {[%clk 0:03:00]}  g6 {[%clk 0:03:00]} 3. c3 {[%clk 0:02:59]}  Nc6 {[%clk 0:03:00]} 4. d4 {[%clk 0:02:59]}  d5 {[%clk 0:03:00]} 5. e5 {[%clk 0:02:56]}  cxd4 {[%clk 0:03:00]} 6. cxd4 {[%clk 0:02:55]}  Bg4 {[%clk 0:03:00]} 7. Be2 {[%clk 0:02:53]}  Qb6 {[%clk 0:03:00]} 8. O-O {[%clk 0:02:48]}  e6 {[%clk 0:02:59]} 9. Be3 {[%clk 0:02:22]}  Nh6 {[%clk 0:02:55]} 10. Nbd2 {[%clk 0:02:17]}  Nf5 {[%clk 0:02:54]} 11. Nb3 {[%clk 0:02:16]}  Bg7 {[%clk 0:02:49]} 12. Qd2 {[%clk 0:02:12]}  O-O {[%clk 0:02:47]} 13. h3 {[%clk 0:02:04]}  Bxf3 {[%clk 0:02:47]} 14. Bxf3 {[%clk 0:02:04]}  Rfc8 {[%clk 0:02:45]} 15. Rfd1 {[%clk 0:02:03]}  a5 {[%clk 0:02:37]} 16. Rac1 {[%clk 0:01:42]}  Bf8 {[%clk 0:02:27]} 17. g4 {[%clk 0:01:34]}  Nxe3 {[%clk 0:02:23]} 18. fxe3 {[%clk 0:01:35]}  a4 {[%clk 0:02:21]} 19. Nc5 {[%clk 0:01:35]}  Nxe5 {[%clk 0:02:16]} 20. dxe5 {[%clk 0:01:25]}  Bxc5 {[%clk 0:02:02]} 21. Kf2 {[%clk 0:01:21]}  Rc7 {[%clk 0:01:55]} 22. Be2 {[%clk 0:01:13]}  Rac8 {[%clk 0:01:53]} 23. Kf3 {[%clk 0:01:03]}  a3 {[%clk 0:01:30]} 24. bxa3 {[%clk 0:00:59]}  Bxa3 {[%clk 0:01:26]} 25. Rxc7 {[%clk 0:00:57]}  Rxc7 {[%clk 0:01:26]} 26. Bd3 {[%clk 0:00:57]}  Qb2 {[%clk 0:01:21]} 27. Qxb2 {[%clk 0:00:48]}  Bxb2 {[%clk 0:01:22]} 28. Kf4 {[%clk 0:00:49]}  h6 {[%clk 0:01:16]} 29. h4 {[%clk 0:00:48]}  Rc3 {[%clk 0:01:10]} 30. Rb1 {[%clk 0:00:34]}  Rxd3 {[%clk 0:01:06]} 31. Rxb2 {[%clk 0:00:34]}  Ra3 {[%clk 0:01:01]} 32. Rxb7 {[%clk 0:00:22]}  Rxa2 {[%clk 0:01:00]} 33. Rd7 {[%clk 0:00:20]}  Ra4+ {[%clk 0:00:59]} 34. Kf3 {[%clk 0:00:20]}  Re4 {[%clk 0:00:58]} 35. g5 {[%clk 0:00:13]}  h5 {[%clk 0:00:48]} 0-1


[Site "https://www.chess.com"]